bitfinex-derivatives/quotes_ETHF0:USTF0_20250918
["timestamp","ask_amount","ask_price","bid_price","bid_amount"]
[1758198885886,0.7099,4571.8,4571.7,0.3904]
[1758198887380,0.7099,4571.8,4571.7,0.1952]
[1758198887584,0.3982,4571.4,4571.3,0.21707585]
[1758198887885,0.7099,4571.4,4571.3,0.21707585]
[1758198888079,0.7099,4571.4,4571.3,0.41227585]
[1758198888481,0.7099,4571.4,4571.3,0.70137585]
[1758198888787,0.7099,4571.4,4571.3,0.41227585]
[1758198889273,1.25808427,4571.4,4571.3,0.41227585]
[1758198889476,0.2601,4571.5,4571.3,0.70137585]
[1758198889677,0.2601,4571.5,4571.4,0.4843]
[1758198889884,0.7692,4571.5,4571.4,0.6795]
[1758198890583,0.5718,4571.5,4571.4,0.6795]
[1758198890884,0.2601,4571.5,4571.4,0.6795]
[1758198891879,0.5718,4571.5,4571.4,0.6795]
[1758198892081,1.0927,4571.5,4571.4,0.6795]
[1758198893492,0.2601,4571.5,4571.4,0.6795]
[1758198893880,1.0927,4571.5,4571.4,0.3904]
[1758198894076,1.0927,4571.5,4571.4,0.1952]
[1758198894283,1.0927,4571.5,4571.3,0.02187585]
[1758198894284,1.88973204,4571.5,4571.3,0.02187585]
[1758198894484,1.50693204,4571.4,4571.3,0.02187585]
[1758198897286,1.30613204,4571.4,4571.3,0.74997585]
[1758198897587,1.05716636,4571.4,4571.3,0.74997585]
[1758198899284,1.10871853,4571.4,4571.3,0.74997585]
[1758198899489,0.2601,4571.5,4571.4,0.3154]
[1758198899692,0.5781,4571.5,4571.4,0.7281]
[1758198899989,0.7748,4571.5,4571.4,0.7281]
[1758198900487,0.2601,4571.5,4571.4,0.7281]
[1758198905495,0.2601,4571.5,4571.4,4.7281]
[1758198906988,0.3139,4572.3,4571.5,0.0957]
[1758198907294,0.3139,4572.3,4572.2,3.911]
[1758198907596,0.5178,4572.3,4572.2,3.911]
[1758198907791,0.7239,4572.3,4572.2,3.5982]
[1758198909294,0.7239,4572.3,4572.2,3.911]
[1758198911997,0.5178,4572.3,4572.2,3.911]
[1758198912494,0.3139,4572.8,4572.3,0.3128]
[1758198912794,0.5178,4572.8,4572.7,0.7032]
[1758198913100,0.7239,4572.8,4572.7,0.7032]
[1758198913397,0.7239,4572.8,4572.7,0.3904]
[1758198914797,0.3139,4572.8,4572.7,0.7032]
[1758198915503,0.3139,4572.8,4572.7,3.911]
[1758198915801,0.3139,4573.4,4572.8,0.3128]
[1758198916105,0.7239,4573.4,4573.3,0.7032]
[1758198917001,0.1218,4574.0,4573.3,0.7032]
[1758198917002,0.3139,4573.9,4573.3,0.7032]
[1758198917304,0.7239,4573.9,4573.8,0.1923]
[1758198918004,0.8445,4573.5,4573.4,0.3904]
[1758198919208,0.8445,4573.5,4573.4,0.7032]
[1758198919897,0.3139,4573.5,4573.4,0.7032]
[1758198921105,0.5178,4573.5,4573.4,0.7032]
[1758198921294,0.1218,4574.0,4573.9,0.1923]
[1758198921295,0.3257,4574.0,4573.9,0.1923]
[1758198921492,0.5178,4574.0,4573.9,0.7032]
[1758198921696,0.1206,4574.5,4573.9,0.3904]
[1758198921901,3.2078,4574.9,4574.8,0.1923]
[1758198921902,3.6178,4574.9,4574.8,0.1923]
[1758198922506,3.9317,4574.9,4574.8,0.1923]
[1758198922802,4.1537,4574.9,4574.5,0.3128]
[1758198923506,4.1537,4574.9,4574.8,0.1923]
[1758198924003,3.7256,4574.9,4574.8,0.7032]
[1758198924300,0.7239,4574.3,4574.2,3.2078]
[1758198924704,0.41,4573.9,4573.8,5.5858]
[1758198924902,0.7239,4573.9,4573.8,5.7839]
[1758198926107,0.7239,4573.9,4573.8,6.0967]
[1758198928001,0.1206,4574.5,4573.8,6.0967]
[1758198928206,0.7239,4574.4,4574.3,0.3904]
[1758198928903,0.7239,4574.4,4574.3,0.7032]
[1758198929402,3.2078,4574.9,4574.3,0.7032]
[1758198929595,3.6178,4574.9,4574.8,0.1923]
[1758198929800,3.6178,4574.9,4574.4,0.3128]
[1758198929801,3.9317,4574.9,4574.4,0.3128]
[1758198929996,0.41,4573.9,4573.8,5.5858]
[1758198930196,0.7239,4573.9,4573.8,2.378]
[1758198930401,0.7239,4573.9,4573.8,2.5761]
[1758198930606,0.7239,4573.9,4573.8,2.8889]
[1758198932411,0.7239,4573.9,4573.8,2.5761]
[1758198932811,0.7239,4573.9,4573.8,2.8889]
[1758198933709,0.5178,4573.9,4573.8,2.8889]
[1758198935210,0.7239,4573.9,4573.8,2.1857]
[1758198936206,0.7239,4573.9,4573.4,0.0218]
[1758198936412,0.847,4573.5,4573.4,0.2238]
[1758198936809,0.847,4573.5,4573.4,0.4084]
[1758198937313,0.6367,4573.5,4573.4,0.7078]
[1758198938415,0.847,4573.5,4573.4,0.4084]
[1758198938611,0.847,4573.5,4573.0,0.2994]
[1758198938817,0.5432,4573.0,4572.9,2.3877]
[1758198939113,0.847,4573.0,4572.9,2.1857]
[1758198939305,0.847,4573.0,4572.9,2.3877]
[1758198940606,0.847,4573.0,4572.9,2.1857]
[1758198942317,1.39518431,4573.0,4572.9,2.1857]
[1758198942513,0.3038,4572.9,4571.7,0.2994]
[1758198942710,5.09138431,4573.0,4571.7,0.5014]
[1758198942711,0.7273,4571.8,4571.7,0.5014]
[1758198943418,0.7273,4571.8,4571.7,0.7078]
[1758198946220,0.4235,4571.8,4571.7,0.7078]
[1758198946424,0.2132,4571.8,4571.7,0.7078]
[1758198946926,40.8,4572.4,4571.8,0.2994]
[1758198947130,0.2132,4572.3,4572.2,0.7078]
[1758198948029,3.2078,4572.6,4572.5,0.1236]
[1758198948232,3.2078,4572.6,4572.5,0.8314]
[1758198948931,3.5116,4573.3,4572.5,4.532]
[1758198949131,3.5116,4573.3,4573.2,0.7078]
[1758198949132,0.7273,4573.3,4573.2,0.7078]
[1758198950237,0.7273,4573.3,4572.5,0.1236]
[1758198950437,0.4235,4572.4,4572.3,3.7092]
[1758198950636,0.7273,4572.4,4572.3,3.7092]
[1758198950840,0.7273,4572.4,4572.3,3.9156]
[1758198951137,0.2132,4572.4,4572.3,3.9156]
[1758198951338,0.3038,4572.7,4572.3,3.9156]
[1758198951539,0.7273,4573.2,4573.1,0.5058]
[1758198951736,0.7273,4573.2,4573.1,0.7078]
[1758198952434,0.7273,4573.2,4573.1,0.202]
[1758198952839,0.7273,4573.2,4573.1,0.5014]
[1758198953340,0.7273,4573.2,4573.1,0.202]
[1758198954441,0.7273,4573.2,4573.1,0.7078]
[1758198954739,0.9493,4573.2,4573.1,0.7078]
[1758198955440,0.4352,4573.2,4573.1,0.7078]
[1758198955638,0.3038,4573.6,4573.1,0.7078]
[1758198955839,0.222,4573.5,4573.2,0.2994]
[1758198956143,0.739,4573.5,4573.4,0.7078]
[1758198956333,0.9493,4573.5,4573.4,0.7078]
[1758198956535,0.6455,4573.5,4573.4,0.7078]
[1758198956735,0.4235,4573.5,4573.4,0.7078]
[1758198956934,0.6455,4573.5,4573.4,0.7078]
[1758198957441,0.9382,4573.5,4573.4,0.7078]
[1758198959444,0.6455,4573.5,4573.4,0.7078]
[1758198959638,0.9382,4573.5,4573.4,0.7078]
[1758198960341,0.2927,4573.8,4573.5,0.1205]
[1758198960544,0.4861,4573.8,4573.7,0.7076]
[1758198960742,0.6796,4573.8,4573.1,0.2929]
[1758198961045,0.6796,4573.2,4573.1,0.5009]
[1758198961437,0.6796,4573.2,4573.1,0.7076]
[1758198961941,0.3869,4573.2,4573.1,0.7076]
[1758198962241,3.2078,4573.8,4573.7,0.208]
[1758198962447,0.4861,4574.4,4574.3,0.4147]
[1758198962638,1.50877101,4574.4,4574.3,0.7076]
[1758198962838,1.70227101,4574.4,4574.0,0.2929]
[1758198963039,0.6796,4574.1,4574.0,0.5009]
[1758198963443,0.8062,4574.0,4573.9,0.208]
[1758198963944,1.0282,4574.0,4573.6,0.2929]
[1758198964139,4.236,4574.0,4573.0,0.1236]
[1758198964344,4.236,4574.0,4573.1,0.2929]
[1758198966548,0.2126,4573.2,4573.1,0.6994]
[1758198966847,0.7283,4573.2,4573.1,0.6994]
[1758198967343,0.5402,4573.6,4573.2,0.2944]
[1758198967648,0.5308,4573.6,4573.5,0.7009]
[1758198967845,0.2126,4573.6,4573.5,0.8259]
[1758198968245,0.222,4573.7,4573.5,0.8259]
[1758198968451,3.2078,4574.0,4573.9,0.4065]
[1758198968650,0.55027344,4574.0,4573.9,0.7009]
[1758198968843,3.9361,4574.6,4574.5,0.7009]
[1758198969041,4.1581,4574.6,4574.5,0.7009]
[1758198971143,3.9361,4574.6,4574.5,0.7009]
[1758198971448,4.1581,4574.6,4574.5,0.7009]
[1758198971947,3.9361,4574.6,4574.5,0.7009]
[1758198972150,4.1581,4574.6,4574.5,0.7009]
[1758198972646,3.9361,4574.6,4574.5,0.7009]
[1758198972848,4.1581,4574.6,4574.5,0.7009]
[1758198973152,0.3182,4574.9,4574.5,0.8259]
[1758198973349,0.4346,4574.6,4574.5,0.8259]
[1758198973652,3.9361,4575.4,4575.3,0.7009]
[1758198973845,0.7283,4575.4,4575.3,0.7009]
[1758198974347,0.5308,4575.8,4575.7,0.4065]
[1758198974539,0.222,4576.0,4575.7,0.4065]
[1758198974845,0.7528,4576.1,4576.0,0.7009]
[1758198975051,0.5308,4576.1,4576.0,0.8259]
[1758198975249,0.7283,4576.1,4576.0,0.8259]
[1758198975945,0.3182,4576.1,4576.0,0.8259]
[1758198976153,0.4195,4576.3,4576.2,0.7009]
[1758198976356,0.6321,4576.3,4576.2,0.7009]
[1758198976852,0.4101,4576.3,4576.2,0.7009]
[1758198977351,0.9503,4576.3,4576.2,0.7009]
[1758198977549,0.9503,4576.3,4576.2,0.2011]
[1758198977750,0.7283,4576.3,4576.2,0.7009]
[1758198977948,0.9503,4576.3,4576.2,0.7009]
[1758198979447,0.7283,4576.3,4576.2,0.7009]
[1758198980247,0.7283,4576.3,4576.2,0.4065]
[1758198980648,0.7283,4576.3,4576.2,0.7009]
[1758198981044,0.7283,4576.3,4575.7,0.2944]
[1758198982852,0.9503,4576.3,4575.7,0.2944]
[1758198985253,0.9503,4576.3,4575.5,0.125]
[1758198985254,0.2126,4576.3,4576.2,0.7009]
[1758198985453,0.4375,4577.0,4576.5,0.8259]
[1758198985651,0.222,4576.9,4576.6,0.4955]
[1758198985851,0.7283,4576.8,4576.7,0.7009]
[1758198986053,0.7283,4576.8,4576.7,0.2011]
[1758198987054,0.7283,4576.8,4576.7,0.4955]
[1758198987657,0.7283,4576.8,4576.7,0.7009]
[1758198988453,0.7283,4576.8,4576.7,0.2011]
[1758198988754,0.7283,4576.8,4576.4,0.2944]
[1758198989057,0.4101,4576.8,4576.0,0.4194]
[1758198989358,0.7283,4576.1,4576.0,0.8259]
[1758198989659,0.7283,4576.1,4576.0,0.7009]
[1758198990351,0.7283,4576.1,4576.0,0.8259]
[1758198990750,0.7283,4576.1,4576.0,0.7009]
[1758198994262,0.2126,4576.1,4576.0,0.7009]
[1758198994469,0.7283,4576.6,4576.5,0.2011]
[1758198995069,0.7283,4576.6,4576.0,0.125]
[1758198995070,0.1193,4576.5,4576.0,0.125]
[1758198995370,0.7283,4576.1,4576.0,0.4065]
[1758198995762,0.7283,4576.1,4576.0,0.7205]
[1758199000167,0.8267,4576.0,4575.9,2.1879]
[1758199000568,0.8267,4576.0,4575.9,2.3934]
[1758199000867,0.8267,4576.0,4575.9,2.7074]
[1758199001268,1.37710005,4576.0,4575.9,2.7074]
[1758199001464,1.37710005,4576.0,4575.9,2.9175]
[1758199001660,1.25590005,4576.0,4575.9,2.9175]
[1758199002069,1.50694793,4576.0,4575.9,0.7296]
[1758199002769,0.25104788,4576.0,4575.9,0.7296]
[1758199002970,0.7055,4576.8,4576.7,0.7296]
[1758199003169,1.50727661,4576.8,4576.7,0.7296]
[1758199006367,0.80177661,4576.8,4576.7,0.7296]
[1758199007673,1.30457661,4576.8,4576.7,0.7296]
[1758199007867,1.50727661,4576.8,4576.7,0.7296]
[1758199008274,1.50727661,4576.8,4576.7,0.2055]
[1758199008475,1.20377661,4576.8,4576.3,0.314]
[1758199008770,0.1993,4576.3,4576.2,3.6234]
[1758199009277,0.1993,4576.3,4576.2,3.9374]
[1758199013768,0.3035,4576.6,4576.2,3.9374]
[1758199013976,0.5028,4576.6,4576.5,0.5361]
[1758199014274,0.75052235,4576.6,4576.5,0.8501]
[1758199015169,0.75052235,4576.6,4576.5,0.7296]
[1758199015170,1.25672235,4576.6,4576.5,0.7296]
[1758199015368,0.7055,4576.6,4576.5,0.7296]
[1758199016375,0.7055,4576.3,4576.2,0.0218]
[1758199016574,1.25677651,4576.3,4576.2,0.5364]
[1758199017878,1.25677651,4576.3,4576.2,0.2273]
[1758199018075,1.25677651,4576.3,4576.2,0.0218]
[1758199018280,0.2124,4576.1,4576.0,2.1879]
[1758199018479,0.7347,4576.1,4576.0,2.1879]
[1758199018679,1.2860296,4576.1,4576.0,2.1879]
[1758199019176,0.1263,4576.0,4575.7,3.5169]
[1758199019475,0.3141,4575.7,4575.4,2.497]
[1758199019672,0.1263,4576.0,4575.4,2.1879]
[1758199019673,0.861,4575.5,4575.4,2.1879]
[1758199019975,1.41233556,4575.5,4575.4,2.1879]
[1758199020377,1.28603556,4575.5,4575.4,0.7234]
[1758199020579,0.76373556,4575.5,4575.4,0.7234]
[1758199020783,1.28603556,4575.5,4575.4,0.7234]
[1758199021475,0.3141,4575.4,4575.1,3.5169]
[1758199021679,0.7347,4575.2,4575.1,3.2296]
[1758199021880,0.7347,4575.2,4575.1,0.0218]
[1758199022080,1.29405161,4575.2,4575.1,0.0218]
[1758199022272,0.7347,4575.2,4575.1,0.0218]
[1758199023274,1.29367515,4575.2,4575.1,0.0218]
[1758199023675,1.29367515,4575.2,4575.1,0.233]
[1758199023880,1.29367515,4575.2,4575.1,0.7452]
[1758199024180,0.7347,4575.2,4575.1,0.7452]
[1758199024881,0.7347,4575.2,4575.1,0.7234]
[1758199025678,0.5302,4575.2,4575.1,0.7234]
[1758199025877,0.7271,4575.2,4575.1,0.7234]
[1758199028178,0.7271,4575.2,4575.1,0.5203]
[1758199028479,0.5273,4575.0,4574.9,0.0218]
[1758199028685,0.8451,4575.0,4574.9,0.0218]
[1758199030789,0.8451,4575.0,4574.4,0.2906]
[1758199031082,0.7268,4574.5,4574.4,0.6913]
[1758199031887,0.8451,4574.5,4574.4,0.6913]
[1758199034183,0.7268,4574.5,4574.4,0.6913]
[1758199036686,0.3178,4574.4,4574.3,3.2078]
[1758199037192,0.7268,4574.4,4574.3,3.6924]
[1758199037485,0.7268,4574.4,4574.3,3.8991]
[1758199038589,0.7268,4574.4,4574.3,3.2078]
[1758199038789,0.7268,4574.4,4574.2,0.0218]
[1758199039390,0.221,4574.3,4574.2,0.0218]
[1758199039591,0.9478,4574.3,4574.2,0.0218]
[1758199039804,0.9478,4574.3,4573.6,0.2906]
[1758199041306,0.9478,4574.3,4574.2,0.4846]
[1758199042405,0.9478,4574.3,4574.2,0.194]
[1758199042610,0.9478,4574.3,4574.0,0.0218]
[1758199044906,0.7268,4574.1,4574.0,0.5064]
[1758199045307,0.7268,4574.1,4574.0,0.194]
[1758199046415,0.7268,4574.1,4574.0,0.4846]
[1758199047307,0.9478,4574.1,4574.0,0.6913]
[1758199048315,1.50603822,4574.1,4574.0,0.6913]
[1758199051211,0.3178,4574.4,4574.0,0.5184]
[1758199051409,0.221,4574.6,4574.5,0.1177]
[1758199051602,0.3178,4575.4,4574.6,0.2906]
[1758199051808,0.2121,4574.7,4574.6,0.6913]
[1758199052203,0.3178,4574.9,4574.6,0.6913]
[1758199052411,0.5388,4575.0,4574.7,0.2906]
[1758199052608,0.5388,4575.0,4574.9,0.2906]
[1758199052803,0.7509,4575.0,4574.9,0.6913]
[1758199053008,1.30949061,4575.0,4574.9,0.6913]
[1758199053808,1.08849061,4575.0,4574.9,0.6913]
[1758199055212,0.77069061,4575.0,4574.9,0.6913]
[1758199055418,0.9484,4575.5,4575.4,0.5076]
[1758199055716,1.50711443,4575.5,4575.4,0.5076]
[1758199055917,1.28611443,4575.5,4575.4,0.7185]
[1758199056507,0.77201443,4575.5,4575.4,0.7185]
[1758199057112,0.2133,4575.8,4575.7,0.4119]
[1758199057309,0.5166,4575.8,4575.7,0.7185]
[1758199057513,1.07524919,4575.8,4575.7,0.7185]
[1758199058319,1.28604919,4575.8,4575.7,0.7185]
[1758199058708,1.28604919,4575.8,4575.7,0.201]
[1758199058915,0.3033,4575.7,4575.1,0.3066]
[1758199059209,0.3033,4575.7,4575.6,0.7185]
[1758199059210,0.7274,4575.7,4575.6,0.7185]
[1758199059410,1.28589529,4575.7,4575.6,0.7185]
[1758199061723,0.98259529,4575.7,4575.0,3.5144]
[1758199061916,0.221,4575.9,4575.0,3.5144]
[1758199061917,0.7274,4575.1,4575.0,3.2078]
[1758199062222,0.7274,4575.1,4575.0,3.4088]
[1758199062422,0.7274,4575.1,4575.0,3.2078]
[1758199062726,0.7274,4575.1,4575.0,3.9263]
[1758199063023,0.5166,4575.4,4575.3,0.7185]
[1758199063223,0.7274,4575.4,4575.3,0.7185]
[1758199065018,0.3033,4575.3,4575.0,3.2078]
[1758199065220,0.4284,4575.0,4574.6,0.3066]
[1758199065425,0.5166,4574.7,4574.6,0.7185]
[1758199066224,0.2133,4574.7,4574.6,0.7185]
[1758199066421,3.2078,4575.5,4575.4,0.7185]
[1758199067514,3.4211,4575.5,4575.4,0.7185]
[1758199067925,3.7244,4575.5,4575.4,0.7185]
[1758199068426,3.4211,4575.5,4575.4,0.7185]
[1758199071734,0.2133,4575.5,4575.4,0.7185]
[1758199071926,0.5166,4575.5,4575.4,0.7185]
[1758199073929,0.2133,4575.5,4575.4,0.7185]
[1758199075836,0.5166,4575.8,4575.7,0.7185]
[1758199076033,1.07489398,4575.8,4575.7,0.7185]
[1758199076537,1.28569398,4575.8,4575.7,0.7185]
[1758199080540,0.2133,4575.8,4575.7,0.7185]
[1758199081235,0.77270142,4575.8,4575.7,0.7185]
[1758199081640,1.06890142,4575.8,4575.7,0.7185]
[1758199082946,0.2962,4576.1,4575.7,0.7185]
[1758199083135,3.2078,4576.6,4575.7,0.7185]
[1758199083136,0.85560118,4576.0,4575.8,0.2905]
[1758199083342,0.1969,4576.0,4575.9,0.4089]
[1758199083646,0.4931,4576.5,4576.4,0.2089]
[1758199083840,1.24539472,4576.5,4576.4,0.6994]
[1758199085043,0.75629472,4576.5,4576.4,0.6994]
[1758199085439,0.1969,4576.5,4576.4,0.6994]
[1758199085648,0.5016,4576.5,4576.4,0.6994]
[1758199087355,0.6968,4576.5,4576.4,0.6994]
[1758199087557,0.1952,4575.8,4575.7,0.7077]
[1758199087740,0.6972,4575.8,4575.7,0.207]
[1758199088247,0.6972,4575.8,4575.5,0.3235]
[1758199088450,0.6972,4575.8,4575.5,0.0218]
[1758199092456,0.6972,4575.8,4575.7,0.207]
[1758199092656,0.6972,4575.8,4575.7,0.7077]
[1758199095460,1.25617428,4575.8,4575.7,0.7077]
[1758199095660,0.6972,4575.8,4575.7,0.7077]
[1758199096158,1.25618961,4575.8,4575.7,0.7077]
[1758199098364,0.6972,4575.8,4575.7,0.7077]
[1758199098662,1.25627239,4575.8,4575.7,0.7077]
[1758199099058,0.6972,4575.8,4575.7,0.7077]
[1758199099260,1.2562947,4575.8,4575.7,0.7077]
[1758199099554,0.6972,4575.8,4575.7,0.7077]
[1758199099754,0.221,4576.4,4575.8,0.3017]
[1758199099950,1.49059079,4576.3,4576.2,0.5087]
[1758199100157,1.25628963,4576.3,4576.2,0.7077]
[1758199100460,3.2078,4576.8,4576.2,0.7077]
[1758199100662,0.502,4576.6,4576.5,0.406]
[1758199100855,1.06105113,4576.6,4576.5,0.7077]
[1758199101457,0.3047,4576.9,4576.6,0.3017]
[1758199101658,0.3047,4576.9,4576.5,0.3253]
[1758199101659,0.502,4576.9,4576.8,0.7077]
[1758199101955,1.06092663,4576.9,4576.8,0.7077]
[1758199102158,0.502,4576.9,4576.8,0.7077]
[1758199103158,0.1973,4576.9,4576.8,0.7077]
[1758199103552,0.3047,4577.2,4576.8,3.6138]
[1758199103753,0.6972,4577.4,4577.3,0.5087]
[1758199103963,1.2557634,4577.4,4577.3,0.5087]
[1758199105158,0.6972,4577.4,4577.3,0.5087]
[1758199105359,3.2078,4578.4,4577.4,0.3017]
[1758199105555,0.6972,4578.0,4577.9,0.7077]
[1758199106461,0.3047,4578.8,4577.9,3.6138]
[1758199106662,0.1973,4578.2,4578.1,0.7077]
[1758199106972,0.6972,4578.2,4578.1,0.7077]
[1758199109560,0.3925,4577.8,4577.7,0.5087]
[1758199109758,0.1973,4577.4,4577.3,3.7165]
[1758199109965,0.6972,4577.4,4577.3,3.9155]
[1758199110875,0.6972,4577.4,4577.3,3.4148]
[1758199111171,0.6972,4577.4,4577.3,3.7165]
[1758199111965,0.6972,4577.4,4577.3,3.9155]
[1758199114768,0.6972,4577.4,4577.3,0.5087]
[1758199115169,0.6972,4577.4,4577.3,0.207]
[1758199115470,0.6972,4577.4,4577.3,0.5064]
[1758199115671,0.6972,4577.4,4577.3,0.7129]
[1758199115873,0.2939,4577.9,4577.4,0.2994]
[1758199116077,0.2939,4577.9,4577.3,0.4135]
[1758199116078,0.6876,4577.9,4577.8,0.5065]
[1758199116574,0.6876,4577.9,4577.8,0.713]
[1758199117561,0.2939,4578.2,4577.8,3.9208]
[1758199117763,0.1982,4578.2,4578.1,0.713]
[1758199118869,0.4921,4578.2,4578.1,0.713]
[1758199120175,0.6876,4578.2,4578.1,0.713]
[1758199120971,0.6876,4578.2,4577.5,2.3148]
[1758199120972,0.2939,4578.1,4577.6,0.2994]
[1758199121276,0.1267,4578.5,4577.6,0.2994]
[1758199121277,0.6876,4577.7,4577.6,0.5065]
[1758199121478,0.2939,4578.3,4577.7,0.2994]
[1758199121676,0.6876,4578.3,4578.2,0.2071]
[1758199121880,0.61214001,4578.3,4577.6,0.2994]
[1758199122074,0.61214001,4578.3,4577.6,0.713]
[1758199122075,0.3937,4577.7,4577.6,0.713]
[1758199122271,0.6876,4577.7,4577.6,0.713]
[1758199123476,0.1982,4577.7,4577.6,0.713]
[1758199123677,0.6876,4577.8,4577.7,0.713]
[1758199125380,0.2939,4578.1,4577.7,0.4136]
[1758199125579,0.6147,4578.6,4578.5,0.4136]
[1758199125880,0.9086,4578.6,4578.5,0.713]
[1758199126179,0.6876,4578.6,4578.5,0.713]
[1758199126380,0.6876,4578.6,4578.5,0.8399]
[1758199126978,3.2078,4579.3,4578.5,0.5405]
[1758199127279,1.24321875,4579.2,4579.1,0.5065]
[1758199127476,1.24321875,4579.2,4579.1,0.713]
[1758199127477,0.6876,4579.2,4579.1,0.713]
[1758199127782,3.2078,4579.3,4579.2,0.2994]
[1758199127977,0.2939,4579.6,4579.3,0.4136]
[1758199128277,0.6482,4579.4,4579.3,0.713]
[1758199128483,0.9421,4579.4,4579.3,0.713]
[1758199131583,1.1376,4579.4,4579.3,0.713]
[1758199131776,1.1376,4579.4,4579.3,0.2071]
[1758199131977,1.1376,4579.4,4579.0,0.2994]
[1758199132876,1.1376,4579.4,4578.8,0.2994]
[1758199133781,1.1376,4579.4,4579.3,0.713]
[1758199135477,1.1376,4579.4,4579.0,0.1269]
[1758199135779,0.3937,4578.9,4578.3,3.2078]
[1758199135982,0.2939,4578.8,4578.3,3.2078]
[1758199136183,0.7241,4578.7,4578.6,0.3986]
[1758199136379,0.7241,4578.7,4578.6,0.7072]
[1758199137778,0.7241,4578.7,4578.6,0.2059]
[1758199137984,0.4113,4578.4,4578.3,3.2078]
[1758199138190,0.7241,4578.4,4578.3,3.7223]
[1758199138375,3.2078,4579.3,4578.8,0.7072]
[1758199138376,0.5154,4578.9,4578.8,0.7072]
[1758199138686,0.7241,4578.9,4578.8,0.7072]
[1758199139581,3.2078,4579.3,4578.8,0.3986]
[1758199139783,0.2026,4578.9,4578.8,0.3986]
[1758199140284,0.5154,4578.9,4578.8,0.7072]
[1758199140982,0.2026,4578.9,4578.8,0.7072]
[1758199142887,0.7241,4578.9,4578.8,0.7072]
[1758199143278,0.7241,4578.9,4578.8,0.5145]
[1758199143482,0.7241,4578.9,4578.3,3.2078]
[1758199143483,0.4113,4578.9,4578.3,3.2078]
[1758199143687,0.7241,4578.4,4578.3,3.7223]
[1758199143889,0.7241,4578.4,4578.3,3.915]
[1758199147991,0.3153,4578.8,4578.3,3.915]
[1758199148186,0.4092,4578.9,4578.8,0.211]
[1758199148390,1.2811526,4578.9,4578.8,0.7062]
[1758199149794,0.2015,4578.9,4578.8,0.7062]
[1758199150687,0.5168,4578.9,4578.8,0.7062]
[1758199150882,0.2015,4578.9,4578.8,0.7062]
[1758199151089,0.3153,4579.2,4578.9,0.2899]
[1758199151394,0.5168,4579.2,4579.1,0.7062]
[1758199151596,1.07359988,4579.2,4579.1,0.7062]
[1758199152794,0.45,4579.4,4579.1,0.7062]
[1758199152989,0.45,4579.4,4579.3,0.4163]
[1758199153190,0.45,4579.4,4579.3,0.7062]
[1758199153692,0.6515,4579.4,4579.3,0.7062]
[1758199156193,0.9668,4579.4,4579.3,0.7062]
[1758199156396,1.1745,4579.4,4579.3,0.5009]
[1758199156696,1.7318209,4579.4,4579.0,0.2899]
[1758199156896,0.7245,4579.1,4579.0,0.5009]
[1758199157794,0.7245,4579.1,4579.0,0.7062]
[1758199160995,0.1189,4579.0,4578.9,0.0218]
[1758199161294,0.3153,4578.9,4578.8,3.2078]
[1758199161599,0.7245,4578.9,4578.8,3.914]
[1758199168797,0.5168,4579.3,4579.2,0.4163]
[1758199169100,0.5168,4579.3,4579.2,0.7062]
[1758199169101,1.07432625,4579.3,4579.2,0.7062]
[1758199169296,0.55752625,4579.3,4579.2,0.7062]
[1758199169492,0.45,4579.4,4579.3,0.2899]
[1758199169696,0.45,4579.4,4579.3,0.7062]
[1758199170797,0.45,4579.4,4579.3,3.914]
[1758199172804,0.45,4579.4,4579.3,4.135]
[1758199173697,0.7245,4580.4,4580.3,0.7062]
[1758199173901,1.28154884,4580.4,4580.3,0.7062]
[1758199178103,0.7245,4580.4,4580.3,0.7062]
[1758199179102,0.7245,4580.4,4580.1,0.0218]
[1758199179406,0.7245,4580.4,4580.3,0.209]
[1758199179707,0.7245,4580.4,4580.3,0.5232]
[1758199181807,0.7245,4580.4,4580.3,0.7235]
[1758199182009,0.7245,4580.4,4580.1,0.0218]
[1758199182408,0.7245,4580.4,4580.1,0.336]
[1758199183105,0.7245,4580.4,4580.1,0.0218]
[1758199183303,0.7195,4580.4,4580.3,0.7235]
[1758199183503,0.7195,4580.4,4580.3,0.209]
[1758199183707,0.7195,4580.4,4580.1,0.0218]
[1758199185006,0.7195,4580.4,4580.1,0.336]
[1758199187411,0.7195,4580.4,4580.1,0.0218]
[1758199187613,0.7195,4580.4,4580.3,0.5232]
[1758199188406,0.7195,4580.4,4580.3,0.7235]
[1758199188612,0.2015,4580.4,4580.3,0.7235]
[1758199189013,0.5118,4580.4,4580.3,0.7235]
[1758199190709,0.2015,4580.4,4580.3,0.7235]
[1758199191616,0.1987,4580.5,4580.4,0.5145]
[1758199191813,0.509,4580.5,4580.4,0.7235]
[1758199193613,1.0655842,4580.5,4580.4,0.7235]
[1758199193815,0.509,4580.5,4580.4,0.7235]
[1758199194515,1.06567108,4580.5,4580.4,0.7235]
[1758199196816,1.26757108,4580.5,4580.4,0.7235]
[1758199200527,1.38727108,4580.5,4580.4,0.209]
[1758199200827,1.38727108,4580.5,4580.3,0.3034]
[1758199201027,1.38727108,4580.5,4580.3,0.5015]
[1758199201028,1.29507108,4580.4,4580.3,0.5015]
[1758199201217,1.29507108,4580.4,4580.3,0.7009]
[1758199204926,1.29507108,4580.4,4580.3,0.1981]
[1758199205130,1.29507108,4580.4,4580.3,0.5015]
[1758199205431,1.29507108,4580.4,4580.3,0.7009]